bitfinex-derivatives/quotes_BTCF0:USTF0_20250213
["timestamp","ask_amount","ask_price","bid_price","bid_amount"]
[1739478728256,0.11,96290.0,96289.0,0.5684781]
[1739478729657,0.11,96290.0,96289.0,0.5704781]
[1739478730252,0.11,96290.0,96289.0,0.5734781]
[1739478741566,0.317676,96290.0,96289.0,0.5734781]
[1739478741760,0.317676,96290.0,96289.0,0.005]
[1739478742168,0.317676,96290.0,96289.0,0.212678]
[1739478742867,0.317676,96290.0,96289.0,0.207678]
[1739478745170,0.2076889,96285.0,96284.0,0.207687]
[1739478745471,0.3176889,96285.0,96284.0,0.207687]
[1739478746472,0.3176889,96285.0,96284.0,0.208687]
[1739478751371,0.3176889,96285.0,96284.0,0.001]
[1739478752880,0.3176889,96285.0,96271.0,0.0118429]
[1739478752881,0.2077147,96272.0,96271.0,0.0118429]
[1739478753071,0.2077191,96270.0,96269.0,0.20927902]
[1739478753375,0.11,96270.0,96269.0,0.20927902]
[1739478754265,0.11,96270.0,96269.0,0.21527902]
[1739478754479,0.11,96270.0,96269.0,0.22668479]
[1739478755570,0.11,96270.0,96269.0,0.23168479]
[1739478758077,0.317719,96270.0,96269.0,0.02396359]
[1739478758669,0.317719,96270.0,96269.0,0.23168479]
[1739478759371,0.11,96270.0,96269.0,0.23168479]
[1739478761879,0.3177191,96270.0,96269.0,0.23168479]
[1739478763572,0.3177191,96270.0,96269.0,0.02396359]
[1739478764982,0.3177191,96270.0,96269.0,0.23012697]
[1739478765174,0.3177191,96270.0,96269.0,0.02240577]
[1739478767973,0.3177191,96270.0,96269.0,0.23012697]
[1739478768775,0.11,96270.0,96269.0,0.23012697]
[1739478770882,0.11,96270.0,96269.0,0.59092697]
[1739478775983,0.3177191,96270.0,96269.0,0.59092697]
[1739478777287,0.3177191,96270.0,96269.0,0.23012697]
[1739478778888,0.3177191,96270.0,96269.0,0.23112697]
[1739478780284,0.3177191,96270.0,96269.0,0.22412697]
[1739478780485,0.3177191,96270.0,96269.0,0.23012697]
[1739478781287,0.11,96270.0,96269.0,0.23012697]
[1739478781482,0.317719,96270.0,96269.0,0.23012697]
[1739478781984,0.11,96270.0,96269.0,0.23012697]
[1739478785682,0.317719,96270.0,96269.0,0.02240577]
[1739478786085,0.317719,96270.0,96269.0,0.23012697]
[1739478787788,0.317719,96270.0,96269.0,0.02240577]
[1739478787994,0.317719,96270.0,96269.0,0.23012697]
[1739478791391,0.11,96270.0,96269.0,0.23012697]
[1739478791590,0.11,96270.0,96269.0,0.59092697]
[1739478792402,0.2162,96292.0,96284.0,0.2076888]
[1739478792602,0.2076909,96283.0,96282.0,0.3608]
[1739478792790,0.11,96283.0,96270.0,0.12567503]
[1739478792994,0.1063,96282.0,96281.0,0.2076953]
[1739478793195,0.2163,96282.0,96281.0,0.5684953]
[1739478794003,0.4239931,96282.0,96281.0,0.5684953]
[1739478794493,0.4239931,96282.0,96281.0,0.2096953]
[1739478794800,0.4239931,96282.0,96281.0,0.2106953]
[1739478807703,0.3176931,96282.0,96281.0,0.2106953]
[1739478810311,0.14732973,96282.0,96281.0,0.2106953]
[1739478810507,0.06,96282.0,96281.0,0.2106953]
[1739478810713,0.05884416,96282.0,96281.0,0.5714953]
[1739478810898,0.1,96300.0,96299.0,0.2076565]
[1739478811102,0.21,96300.0,96299.0,0.5684565]
[1739478811903,0.21,96300.0,96299.0,0.57965017]
[1739478823719,0.21,96300.0,96299.0,0.58265017]
[1739478824416,0.21,96300.0,96299.0,0.58165017]
[1739478825420,0.21,96300.0,96299.0,0.58365017]
[1739478828515,0.21,96300.0,96299.0,0.58165017]
[1739478828708,0.21,96300.0,96299.0,0.58365017]
[1739478829117,0.21,96300.0,96299.0,0.58465017]
[1739478834119,0.4176543,96300.0,96299.0,0.01619367]
[1739478834322,0.4176543,96300.0,96299.0,0.005]
[1739478834323,0.7784543,96300.0,96299.0,0.005]
[1739478834616,0.2076672,96294.0,96293.0,0.01106374]
[1739478834823,0.13,96294.0,96290.0,0.00015584]
[1739478835122,0.13,96294.0,96293.0,0.2076694]
[1739478835526,0.13,96294.0,96293.0,0.21880798]
[1739478837018,0.132,96294.0,96293.0,0.21880798]
[1739478837529,0.134,96294.0,96293.0,0.21880798]
[1739478839717,0.134,96294.0,96293.0,0.01113858]
[1739478839921,0.2076737,96291.0,96290.0,0.00015584]
[1739478840124,0.3376737,96291.0,96290.0,0.00015584]
[1739478841126,0.3386737,96291.0,96290.0,0.00015584]
[1739478841424,0.3396737,96291.0,96290.0,0.00015584]
[1739478842321,0.3396737,96291.0,96290.0,0.01129441]
[1739478843218,0.3396737,96291.0,96278.0,0.2077009]
[1739478843219,0.2076974,96280.0,96271.0,0.0516]
[1739478843423,0.3276974,96280.0,96270.0,0.12430755]
[1739478843624,0.3276974,96280.0,96273.0,0.2077125]
[1739478844132,0.3276974,96280.0,96279.0,0.01253632]
[1739478844331,0.3276974,96280.0,96279.0,0.01553632]
[1739478844727,0.3276974,96280.0,96279.0,0.01753632]
[1739478847936,0.12,96280.0,96279.0,0.22523592]
[1739478850820,0.1,96300.0,96279.0,0.01753632]
[1739478851020,0.1,96300.0,96299.0,0.2076564]
[1739478851225,0.19,96300.0,96299.0,0.2076564]
[1739478852131,0.19,96300.0,96299.0,0.21899509]
[1739478853230,0.195,96300.0,96299.0,0.21899509]
[1739478854330,0.193,96300.0,96299.0,0.21999509]
[1739478854931,0.193,96300.0,96299.0,0.22099509]
[1739478855935,0.19,96300.0,96299.0,0.22199509]
[1739478857035,0.19,96300.0,96299.0,0.22399509]
[1739478859237,0.3976543,96300.0,96299.0,0.22399509]
[1739478860734,0.3976543,96300.0,96299.0,0.01633869]
[1739478861641,0.19,96300.0,96299.0,0.22399519]
[1739478862737,0.19,96300.0,96299.0,0.21899519]
[1739478862938,0.192,96300.0,96299.0,0.21899519]
[1739478870244,0.3996543,96300.0,96299.0,0.01133869]
[1739478870543,0.2076737,96291.0,96290.0,0.00015584]
[1739478870731,0.6784737,96291.0,96290.0,0.00015584]
[1739478870928,0.6784737,96291.0,96290.0,0.01108163]
[1739478871131,0.6784737,96291.0,96290.0,0.00015584]
[1739478871342,0.3176737,96291.0,96290.0,0.00015584]
[1739478871637,0.3176737,96291.0,96290.0,0.01153631]
[1739478871941,0.3176737,96291.0,96290.0,0.00315584]
[1739478872447,0.6784737,96291.0,96290.0,0.00315584]
[1739478872942,0.2076975,96280.0,96270.0,0.12430755]
[1739478873133,0.3176975,96280.0,96276.0,0.2077053]
[1739478874141,0.3176975,96280.0,96279.0,0.00455772]
[1739478874538,0.3176975,96280.0,96279.0,0.01560975]
[1739478874735,0.3176975,96280.0,96279.0,0.00455772]
[1739478875239,0.3176975,96280.0,96279.0,0.00855772]
[1739478875841,0.3176975,96280.0,96279.0,0.01966561]
[1739478880042,0.3176975,96280.0,96279.0,0.00855772]
[1739478882038,0.3176975,96280.0,96279.0,0.00555772]
[1739478882245,0.3176975,96280.0,96279.0,0.00755772]
[1739478883946,0.3176975,96280.0,96279.0,0.2126996]
[1739478886452,0.3176975,96280.0,96279.0,0.005]
[1739478886851,0.6784975,96280.0,96279.0,0.005]
[1739478894053,0.6784975,96280.0,96270.0,0.00015584]
[1739478894054,0.2077169,96271.0,96270.0,0.00015584]
[1739478894357,0.2077169,96271.0,96254.0,0.2077535]
[1739478894358,0.4708,96271.0,96254.0,0.2077535]
[1739478894659,0.2077514,96255.0,96254.0,0.2077535]
[1739478894857,0.3177514,96255.0,96254.0,0.2077535]
[1739478895366,0.11,96255.0,96254.0,0.2077535]
[1739478895553,0.3177514,96255.0,96254.0,0.21874069]
[1739478896250,0.11,96255.0,96254.0,0.21874069]
[1739478897153,0.111,96255.0,96254.0,0.22474069]
[1739478897353,0.111,96255.0,96254.0,0.22974069]
[1739478898559,0.3187514,96255.0,96254.0,0.22974069]
[1739478903362,0.111,96255.0,96254.0,0.22974069]
[1739478904058,0.3187514,96255.0,96254.0,0.22974069]
[1739478905656,0.3187514,96255.0,96254.0,0.011]
[1739478905855,0.6795514,96255.0,96254.0,0.011]
[1739478906759,0.6785514,96255.0,96254.0,0.007]
[1739478906959,0.6785514,96255.0,96254.0,0.003]
[1739478908557,0.6785514,96255.0,96254.0,0.2107536]
[1739478908868,0.4708,96255.0,96254.0,0.2107536]
[1739478909760,0.6785514,96255.0,96254.0,0.2107536]
[1739478912071,0.6785514,96255.0,96254.0,0.003]
[1739478913368,0.68974378,96255.0,96254.0,0.003]
[1739478913571,0.6785514,96255.0,96254.0,0.003]
[1739478915166,0.3177514,96255.0,96254.0,0.003]
[1739478915370,0.6785514,96255.0,96254.0,0.003]
[1739478915967,0.2077708,96246.0,96245.0,0.00015584]
[1739478916169,0.6785708,96246.0,96245.0,0.00015584]
[1739478916972,0.6785708,96246.0,96245.0,0.00415584]
[1739478917478,0.6785708,96246.0,96245.0,0.00015584]
[1739478917777,0.6785708,96246.0,96245.0,0.00515584]
[1739478917961,0.6785708,96246.0,96225.0,0.30637405]
[1739478917962,0.207814,96226.0,96225.0,0.30637405]
[1739478918170,0.327814,96226.0,96225.0,0.30637405]
[1739478918670,0.12,96226.0,96225.0,0.31750756]
[1739478918969,0.327814,96226.0,96225.0,0.31750756]
[1739478919467,0.12,96226.0,96225.0,0.31750756]
[1739478920259,0.12,96226.0,96225.0,0.32050756]
[1739478920670,0.12,96226.0,96225.0,0.32350756]
[1739478932778,0.14666258,96232.0,96231.0,0.2078032]
[1739478932985,0.25666258,96232.0,96231.0,0.2078032]
[1739478933594,0.11,96232.0,96231.0,0.2078032]
[1739478933798,0.11,96232.0,96231.0,0.2088032]
[1739478934893,0.317801,96232.0,96231.0,0.2098032]
[1739478936491,0.11,96232.0,96231.0,0.2098032]
[1739478937595,0.317801,96232.0,96231.0,0.2098032]
[1739478938299,0.11,96232.0,96231.0,0.2098032]
[1739478943498,0.317801,96232.0,96231.0,0.2098032]
[1739478944102,0.11,96232.0,96231.0,0.2098032]
[1739478945399,0.00015584,96235.0,96231.0,0.3628]
[1739478945588,0.13,96250.0,96249.0,0.2077643]
[1739478945793,0.11,96250.0,96249.0,0.5685643]
[1739478946605,0.3177622,96250.0,96249.0,0.5685643]
[1739478947200,0.3177622,96250.0,96249.0,0.3608]
[1739478947501,0.2077708,96246.0,96245.0,0.2077713]
[1739478947702,0.3177708,96246.0,96245.0,0.2077713]
[1739478948695,0.3227708,96246.0,96245.0,0.2077713]
[1739478949096,0.3237708,96246.0,96245.0,0.2077713]
[1739478952901,0.3237708,96246.0,96240.0,0.00015584]
[1739478953104,0.2077816,96241.0,96240.0,0.00015584]
[1739478953406,0.3177816,96241.0,96240.0,0.00015584]
[1739478954003,0.6785816,96241.0,96240.0,0.00015584]
[1739478954205,0.6785816,96241.0,96214.0,0.76868]
[1739478954206,0.207814,96226.0,96225.0,0.00155865]
[1739478954408,0.207855,96207.0,96206.0,0.5686572]
[1739478954605,0.317855,96207.0,96206.0,0.57957523]
[1739478954809,0.317855,96207.0,96206.0,0.37171803]
[1739478955512,0.11,96207.0,96206.0,0.57957523]
[1739478956106,0.11,96207.0,96206.0,0.58357523]
[1739478957115,0.11,96207.0,96206.0,0.58857523]
[1739478961602,0.317855,96207.0,96206.0,0.58857523]
[1739478961801,0.317855,96207.0,96206.0,0.38071803]
[1739478962214,0.678655,96207.0,96206.0,0.009]
[1739478963123,0.2078983,96187.0,96186.0,0.00155919]
[1739478963307,0.3378983,96187.0,96186.0,0.00155919]
[1739478964309,0.3378983,96187.0,96186.0,0.00755919]
[1739478965908,0.3378983,96187.0,96186.0,0.00355919]
[1739478967413,0.3378983,96187.0,96178.0,0.18629674]
[1739478967414,0.2079155,96179.0,96178.0,0.18629674]
[1739478967607,0.2079155,96179.0,96160.0,0.18629674]
[1739478967608,0.4908,96179.0,96160.0,0.18629674]
[1739478967813,0.2079501,96163.0,96162.0,0.06904]
[1739478968114,0.2079544,96161.0,96160.0,0.18629674]
[1739478968306,0.3079544,96161.0,96160.0,0.18629674]
[1739478970012,0.3079544,96161.0,96160.0,0.18729674]
[1739478970219,0.3079544,96161.0,96160.0,0.18829674]
[1739478971816,0.3079544,96161.0,96151.0,0.00015592]
[1739478971817,0.207974,96152.0,96151.0,0.00015592]
[1739478972011,0.4708,96152.0,96142.0,0.01068295]
[1739478972218,0.2080021,96139.0,96138.0,0.2080043]
[1739478972417,0.3180021,96139.0,96138.0,0.2080043]
[1739478972718,0.11,96139.0,96138.0,0.21872651]
[1739478973511,0.111,96139.0,96138.0,0.22472651]
[1739478975317,0.112,96139.0,96138.0,0.22672651]
[1739478976016,0.11195326,96139.0,96138.0,0.22672651]
[1739478978413,0.31995536,96139.0,96138.0,0.22672651]
[1739478981019,0.11195326,96139.0,96138.0,0.22672651]
[1739478984925,0.14694414,96148.0,96147.0,0.2079848]
[1739478985219,0.16694414,96148.0,96147.0,0.2079848]
[1739478985423,0.02,96148.0,96147.0,0.5687848]
[1739478986119,0.02,96148.0,96147.0,0.5737848]
[1739478988021,0.02,96148.0,96147.0,0.5747848]
[1739478988229,0.00341319,96148.0,96147.0,0.5747848]
[1739478988619,0.00341319,96148.0,96147.0,0.5717848]
[1739478988817,0.00341319,96148.0,96147.0,0.5757848]
[1739478989022,0.00341319,96148.0,96147.0,0.5767848]
[1739478989529,0.000156,96157.0,96156.0,0.2079653]
[1739478989829,0.110156,96157.0,96156.0,0.5687653]
[1739478991732,0.16074475,96157.0,96156.0,0.5687653]
[1739478992119,0.16074475,96157.0,96156.0,0.5697653]
[1739478995035,5e-08,96157.0,96156.0,0.5697653]
[1739478995234,0.21593037,96172.0,96171.0,0.2079329]
[1739478995421,0.26593037,96172.0,96171.0,0.5687329]
[1739478995730,0.05,96172.0,96171.0,0.5687329]
[1739478996521,0.051,96172.0,96171.0,0.5757329]
[1739478997531,0.051,96172.0,96171.0,0.58682384]
[1739478997929,0.21593037,96174.0,96173.0,0.2079286]
[1739478998118,7e-08,96174.0,96173.0,0.5687286]
[1739478998323,0.09921287,96182.0,96181.0,0.2079113]
[1739478998528,0.06204287,96182.0,96181.0,0.5687113]
[1739478998736,0.24905484,96189.0,96188.0,0.2078962]
[1739478999032,0.24905484,96189.0,96188.0,0.5686962]
[1739478999929,0.001,96189.0,96188.0,0.5756962]
[1739479001259,0.002,96189.0,96188.0,0.5806962]
[1739479002034,0.000156,96198.0,96197.0,0.2078767]
[1739479002336,0.100156,96198.0,96197.0,0.5686767]
[1739479003137,0.100156,96198.0,96197.0,0.5716767]
[1739479004439,0.100156,96198.0,96197.0,0.5746767]
[1739479004632,0.100156,96198.0,96197.0,0.5736767]
[1739479005032,0.100156,96198.0,96197.0,0.5706767]
[1739479005340,0.100156,96198.0,96197.0,0.5746767]
[1739479005838,0.100156,96198.0,96197.0,0.5736767]
[1739479006143,0.000156,96198.0,96197.0,0.5736767]
[1739479006343,0.000156,96198.0,96197.0,0.5746767]
[1739479006635,0.110156,96198.0,96197.0,0.5756767]
[1739479006841,0.3180305,96198.0,96197.0,0.3678]
[1739479007138,0.110156,96198.0,96188.0,0.362036]
[1739479007341,0.207894,96189.0,96188.0,0.000156]
[1739479007537,0.317894,96189.0,96188.0,0.000156]
[1739479008342,0.317894,96189.0,96188.0,0.005156]
[1739479009033,0.317894,96189.0,96188.0,0.000156]
[1739479009535,0.318894,96189.0,96188.0,0.001156]
[1739479010343,0.318894,96189.0,96188.0,0.000156]
[1739479012040,0.36946887,96189.0,96188.0,0.000156]
[1739479015546,0.44043187,96189.0,96188.0,0.000156]
[1739479017046,0.44043187,96189.0,96188.0,0.01104581]
[1739479019159,0.52338834,96189.0,96188.0,0.01104581]
[1739479019345,0.52338834,96189.0,96188.0,0.21894201]
[1739479020442,0.52338834,96189.0,96188.0,0.01104581]
[1739479023451,0.2079286,96173.0,96172.0,0.3608]
[1739479023643,0.2079394,96168.0,96167.0,0.9781799]
[1739479023844,0.2079394,96168.0,96167.0,0.9771799]
[1739479023845,0.3379394,96168.0,96167.0,0.9771799]
[1739479025257,0.3389394,96168.0,96167.0,0.9831799]
[1739479025555,0.3389394,96168.0,96167.0,0.99415612]
[1739479026055,0.3389394,96168.0,96167.0,0.78621622]
[1739479026459,0.3399394,96168.0,96167.0,0.78721622]
[1739479027854,0.52656302,96168.0,96167.0,0.78721622]
[1739479028055,0.57713789,96168.0,96167.0,0.78721622]
[1739479028760,0.57713789,96168.0,96167.0,0.77624]
[1739479029156,0.57513789,96168.0,96167.0,0.001]
[1739479029462,0.57513789,96168.0,96167.0,0.01365218]
[1739479029663,0.57513789,96168.0,96167.0,0.003]
[1739479029853,0.57513789,96168.0,96167.0,0.002]
[1739479031869,0.2079502,96163.0,96162.0,0.0015595]
[1739479032059,0.6787502,96163.0,96162.0,0.0015595]
[1739479032669,0.3179502,96163.0,96162.0,0.0015595]
[1739479032968,0.3179502,96163.0,96162.0,0.0035595]
[1739479033151,0.3179502,96163.0,96162.0,0.0045595]
[1739479033858,0.6787502,96163.0,96162.0,0.0045595]
[1739479035960,0.6787502,96163.0,96162.0,0.0035595]
[1739479036361,0.79838415,96163.0,96162.0,0.0035595]
[1739479040873,0.97384361,96163.0,96162.0,0.0035595]
[1739479044777,0.87806582,96163.0,96162.0,0.0035595]
[1739479045176,0.88903121,96163.0,96162.0,0.0035595]
[1739479045370,0.87806582,96163.0,96162.0,0.0035595]
[1739479046172,0.2079589,96159.0,96158.0,0.000156]
[1739479046369,0.3279589,96159.0,96158.0,0.000156]
[1739479048163,0.3289589,96159.0,96158.0,0.000156]
[1739479048769,0.52827452,96159.0,96158.0,0.000156]
[1739479049079,0.52927452,96159.0,96158.0,0.000156]
[1739479052782,0.62505643,96159.0,96158.0,0.000156]
[1739479054773,0.77789753,96159.0,96132.0,0.76912]
[1739479054973,0.2080064,96137.0,96132.0,0.77012]
[1739479055178,0.3280064,96137.0,96132.0,0.77012]
[1739479055879,0.3280064,96137.0,96136.0,0.10525172]
[1739479056279,0.3290064,96137.0,96136.0,0.10925172]
[1739479057388,0.3290064,96137.0,96136.0,0.01465172]
[1739479058382,0.3300064,96137.0,96136.0,0.01465172]
[1739479061082,0.62512378,96137.0,96136.0,0.01465172]
[1739479066088,0.44964035,96137.0,96136.0,0.01465172]
[1739479068088,0.60243395,96137.0,96106.0,0.5796]
[1739479068292,0.2080714,96107.0,96106.0,0.3608]
[1739479068496,0.3180714,96107.0,96106.0,0.5688735]
[1739479068692,0.11,96107.0,96106.0,0.5688735]
[1739479069593,0.11,96107.0,96106.0,0.58353921]
[1739479069991,0.111,96107.0,96106.0,0.58353921]
[1739479070395,0.2080159,96133.0,96108.0,0.052017]
[1739479070590,0.2080312,96128.0,96127.0,0.2080267]
[1739479070791,0.3180312,96128.0,96127.0,0.2080267]
[1739479071790,0.3180312,96128.0,96127.0,0.21888046]
[1739479073397,0.3180312,96128.0,96127.0,0.01085376]
[1739479073600,0.2080324,96125.0,96124.0,0.3608]
[1739479073798,0.3080324,96125.0,96124.0,0.3608]
[1739479073985,0.3080324,96125.0,96124.0,0.37182216]
[1739479074699,0.3080324,96125.0,96124.0,0.58185676]
[1739479074900,0.3080324,96125.0,96124.0,0.37382216]
[1739479076993,0.1,96125.0,96124.0,0.37382216]
[1739479077193,0.3080324,96125.0,96124.0,0.37382216]
[1739479078000,0.43109329,96125.0,96124.0,0.37382216]
[1739479078602,0.43109329,96125.0,96124.0,0.58185676]
[1739479081523,0.35863714,96125.0,96124.0,0.58185676]
[1739479082120,0.15060474,96125.0,96124.0,0.58185676]
[1739479082422,0.21680001,96159.0,96141.0,0.2079978]
[1739479082613,0.28794846,96142.0,96141.0,0.9295978]
[1739479082820,0.12882952,96142.0,96141.0,0.9295978]
[1739479083623,0.13182952,96142.0,96141.0,0.9295978]
[1739479084624,0.000156,96151.0,96150.0,0.2079782]
[1739479084928,0.010156,96151.0,96150.0,0.5687782]
[1739479086129,0.010156,96151.0,96150.0,0.5697782]
[1739479086329,0.010156,96151.0,96150.0,0.5707782]
[1739479090030,0.000156,96151.0,96150.0,0.5707782]
[1739479092220,0.0474,96168.0,96150.0,0.6628]
[1739479092433,0.1574,96168.0,96167.0,0.5687416]
[1739479093433,0.11,96168.0,96167.0,0.5687416]
[1739479094732,0.000156,96177.0,96174.0,0.2079264]
[1739479094924,0.39046408,96175.0,96174.0,0.21665165]
[1739479096035,0.39446408,96175.0,96174.0,0.21665165]
[1739479096235,0.39846408,96175.0,96174.0,0.21665165]
[1739479096438,0.118,96175.0,96174.0,0.21665165]
[1739479100339,0.23458509,96175.0,96174.0,0.21665165]
[1739479101042,0.44250929,96175.0,96174.0,0.21665165]
[1739479102043,0.43550929,96175.0,96174.0,0.21765165]
[1739479102543,0.43450929,96175.0,96174.0,0.21765165]
[1739479102736,0.43550929,96175.0,96174.0,0.21765165]
[1739479102937,0.43550929,96175.0,96174.0,0.22065165]
[1739479103238,0.43450929,96175.0,96174.0,0.22165165]
[1739479103646,0.22658509,96175.0,96174.0,0.22165165]
[1739479104241,0.22758509,96175.0,96174.0,0.21765165]
[1739479104739,0.22758509,96175.0,96174.0,0.21665165]
[1739479104942,0.22858509,96175.0,96174.0,0.21665165]
[1739479105345,0.22758509,96175.0,96174.0,0.21765165]
[1739479105644,0.22658509,96175.0,96174.0,0.21765165]
[1739479105830,0.22658509,96175.0,96174.0,0.22165165]
[1739479106037,0.22658509,96175.0,96174.0,0.22265165]
[1739479106644,0.22658509,96175.0,96174.0,0.21965165]
[1739479107237,0.22658509,96175.0,96174.0,0.21765165]
[1739479107438,0.22658509,96175.0,96174.0,0.21965165]
[1739479108041,0.22658509,96175.0,96174.0,0.21865165]
[1739479108249,0.22658509,96175.0,96174.0,0.21965165]
[1739479109049,0.16057479,96175.0,96174.0,0.21965165]
[1739479109845,0.36849909,96175.0,96174.0,0.21965165]
[1739479110443,0.36849909,96175.0,96174.0,0.01172525]
[1739479110745,0.2079437,96166.0,96165.0,0.000156]
[1739479110944,0.2079459,96165.0,96164.0,0.698296]
[1739479111143,0.4277459,96165.0,96164.0,0.697576]
[1739479111545,0.4277459,96165.0,96164.0,0.91399335]
[1739479111740,0.2198,96165.0,96164.0,0.91399335]
[1739479112445,0.4307459,96165.0,96164.0,0.91399335]
[1739479112641,0.2228,96165.0,96164.0,0.91399335]
[1739479113046,0.2198,96165.0,96164.0,0.91699335]
[1739479113249,0.2198,96165.0,96164.0,0.91899335]
[1739479113447,0.2198,96165.0,96164.0,0.22141735]
[1739479114943,0.2198,96165.0,96164.0,0.21941735]
[1739479115148,0.2198,96165.0,96164.0,0.21741735]
[1739479115858,0.2198,96165.0,96164.0,0.21641735]
[1739479116559,0.33533603,96165.0,96164.0,0.21641735]
[1739479118050,0.33633603,96165.0,96164.0,0.22141735]
[1739479118754,0.33533603,96165.0,96164.0,0.21641735]
[1739479118967,0.33533603,96165.0,96164.0,0.21741735]
[1739479120464,0.41173678,96165.0,96164.0,0.21741735]
[1739479121555,0.61968258,96165.0,96164.0,0.21741735]
[1739479123458,0.61968258,96165.0,96164.0,0.00946935]
[1739479124457,0.61968258,96165.0,96164.0,0.21741725]
[1739479124849,0.62068258,96165.0,96164.0,0.21741725]
[1739479125057,0.41273678,96165.0,96164.0,0.21741725]
[1739479125367,0.30293678,96165.0,96164.0,0.21641725]
[1739479126350,0.30293678,96165.0,96164.0,0.22141725]
[1739479127762,0.30293678,96165.0,96164.0,0.21741725]
[1739479127983,0.30193678,96165.0,96164.0,0.21741725]
[1739479128266,0.30193678,96165.0,96164.0,0.21941725]
[1739479128668,0.26193678,96165.0,96164.0,0.21841725]
[1739479128867,0.21136199,96165.0,96164.0,0.21841725]
[1739479129269,0.21136199,96165.0,96164.0,0.21641725]
[1739479129567,0.21136199,96165.0,96164.0,0.21841725]
[1739479132470,0.13496124,96165.0,96164.0,0.21841725]
[1739479133876,0.13496124,96165.0,96164.0,0.21941725]
[1739479135167,0.13496124,96165.0,96164.0,0.22041725]
[1739479136375,0.07,96165.0,96164.0,0.22041725]
[1739479137673,0.2779458,96165.0,96164.0,0.22041725]
[1739479139265,0.3220458,96165.0,96164.0,0.01046935]
[1739479139563,0.46340416,96165.0,96164.0,0.01046935]
[1739479140671,0.46340416,96165.0,96164.0,0.21641725]
[1739479140971,0.46340416,96165.0,96164.0,0.21741725]
[1739479142978,0.60975291,96165.0,96164.0,0.21741725]
[1739479146261,0.55916822,96165.0,96164.0,0.21741725]
[1739479146972,0.55916822,96165.0,96164.0,0.00946935]
[1739479147576,0.3220458,96165.0,96164.0,0.00946935]
[1739479147775,0.3220458,96165.0,96164.0,0.001]
[1739479148072,0.2079652,96156.0,96155.0,0.000156]
[1739479148266,0.3179652,96156.0,96155.0,0.000156]
[1739479149173,0.3179652,96156.0,96155.0,0.2081234]
[1739479149372,0.3179652,96156.0,96155.0,0.2111234]
[1739479149574,0.3179652,96156.0,96155.0,0.003156]
[1739479150078,0.3179652,96156.0,96155.0,0.01381419]
[1739479150268,0.3179652,96156.0,96155.0,0.01781419]
[1739479151572,0.3179652,96156.0,96155.0,0.22578159]
[1739479151771,0.11,96156.0,96155.0,0.22578159]
[1739479155376,0.40660833,96156.0,96155.0,0.22578159]
[1739479157576,0.22918627,96156.0,96155.0,0.22578159]
[1739479157775,0.21918627,96156.0,96155.0,0.22578159]
[1739479158375,0.14768165,96156.0,96155.0,0.22578159]
[1739479158783,0.05379165,96156.0,96155.0,0.22578159]
[1739479160674,0.21809377,96167.0,96155.0,0.01781419]
[1739479160874,0.11039274,96176.0,96175.0,0.2079242]
[1739479161076,0.18039274,96176.0,96175.0,0.5687242]
[1739479161276,0.11039274,96176.0,96175.0,0.5687242]
[1739479161979,0.11339274,96176.0,96175.0,0.5687242]
[1739479162279,4e-08,96176.0,96175.0,0.5687242]
[1739479163190,0.28065525,96176.0,96175.0,0.5687242]
[1739479163577,0.28565521,96176.0,96175.0,0.5687242]
[1739479164687,0.02731339,96176.0,96175.0,0.5687242]
[1739479168184,0.005,96176.0,96175.0,0.5687242]
[1739479172583,0.18654069,96193.0,96192.0,0.2078874]
[1739479172794,0.29654069,96193.0,96192.0,0.5686874]
[1739479173676,0.29654069,96193.0,96192.0,0.58142855]
[1739479173677,0.31054069,96193.0,96192.0,0.58142855]
[1739479175993,0.124,96193.0,96192.0,0.58142855]
[1739479176386,0.000156,96202.0,96192.0,0.58142855]
[1739479176387,0.01680058,96201.0,96200.0,0.2078701]
[1739479176595,0.01680058,96201.0,96200.0,0.5686701]
[1739479176596,0.05,96201.0,96200.0,0.5686701]
[1739479178096,0.052,96201.0,96200.0,0.5686701]
[1739479178484,0.05,96201.0,96200.0,0.5686701]
[1739479178691,0.052,96201.0,96200.0,0.5686701]
[1739479179180,0.053,96201.0,96200.0,0.5686701]
[1739479180385,0.11324245,96201.0,96200.0,0.5686701]
[1739479183499,0.053,96201.0,96200.0,0.5686701]
[1739479188603,0.003,96201.0,96200.0,0.5686701]
[1739479188808,0.000156,96202.0,96201.0,0.207868]
[1739479189097,0.0886,96215.0,96214.0,0.2078399]
[1739479189298,0.1986,96215.0,96214.0,0.2765999]
[1739479190198,0.11,96215.0,96214.0,0.2765999]
[1739479192306,0.11,96215.0,96214.0,0.2775999]
[1739479194394,0.18635028,96215.0,96214.0,0.2775999]
[1739479194603,0.18635028,96215.0,96214.0,0.2088399]
[1739479195307,0.07635028,96215.0,96214.0,0.2088399]
[1739479195513,0.06589586,96215.0,96214.0,0.3388399]
[1739479197011,0.21766721,96223.0,96214.0,0.131]
[1739479197210,0.25766721,96223.0,96222.0,0.5686226]
[1739479198113,0.25866721,96223.0,96222.0,0.5686226]
[1739479199015,0.25866721,96223.0,96222.0,0.58061867]
[1739479199513,0.041,96223.0,96222.0,0.58161867]
[1739479201902,0.001,96223.0,96222.0,0.58161867]
[1739479205915,0.001,96223.0,96222.0,0.58061867]
[1739479209817,0.00155925,96241.0,96222.0,0.37279607]
[1739479210015,0.11155925,96241.0,96240.0,0.5685837]
[1739479210720,0.11155925,96241.0,96240.0,0.3608]
[1739479210914,0.31934085,96241.0,96240.0,0.3608]
[1739479211723,0.32034085,96241.0,96240.0,0.3608]
[1739479212116,0.31934085,96241.0,96240.0,0.3608]
[1739479212311,0.32034085,96241.0,96240.0,0.3618]
[1739479212709,0.32034085,96241.0,96240.0,0.001]
[1739479212916,0.16450465,96241.0,96231.0,0.00015591]
[1739479213116,0.207801,96232.0,96231.0,0.00015591]
[1739479213322,0.327801,96232.0,96231.0,0.00015591]
[1739479214022,0.12,96232.0,96231.0,0.001]
[1739479214211,0.327801,96232.0,96231.0,0.002]
[1739479214818,0.327801,96232.0,96231.0,0.001]
[1739479215019,0.327801,96232.0,96231.0,0.002]
[1739479216122,0.327801,96232.0,96231.0,0.001]
[1739479216322,0.328801,96232.0,96231.0,0.002]
[1739479217613,0.328801,96232.0,96231.0,0.2098032]
[1739479217818,0.40515751,96232.0,96231.0,0.2098032]
[1739479218216,0.40515751,96232.0,96231.0,0.002]
[1739479220127,0.40515751,96232.0,96231.0,0.2098032]
[1739479220327,0.41601677,96232.0,96231.0,0.002]
[1739479220524,0.2078204,96223.0,96222.0,0.00015591]